fUST/lending_fUST_20240220
["ID","MTS","AMOUNT","RATE_DAILY","PERIOD"]
[314589454,1708437042637,-1425.029977,0.00020304,2]
[314589456,1708437042649,-1425.029977,0.00020304,2]
[314589458,1708437042659,-1146.975637,0.00020304,2]
[314589460,1708437042668,-1146.975637,0.00020304,2]
[314589462,1708437042678,-5169.09748996,0.00020309,2]
[314589464,1708437042687,-15760.4813434,0.00020309,2]
[314589466,1708437042696,-443.12268245,0.00020505,2]
[314589468,1708437042706,-153.0,0.00020548,2]
[314589469,1708437042716,-306.0,0.00020548,2]
[314589471,1708437042727,-153.5270955,0.00020548,2]
[314589473,1708437042737,-200.4151623,0.00020548,2]
[314589475,1708437042746,-200.4151623,0.00020548,2]
[314589477,1708437042755,-156.6993804,0.00020659,2]
[314589479,1708437042764,-443.12268245,0.00020822,2]
[314589481,1708437042774,-2394.16156683,0.000209,2]
[314589483,1708437042784,-620.0132736,0.00020974,2]
[314589485,1708437042793,-155.12409928,0.00020996,2]
[314589487,1708437042803,-500.0,0.00020996,2]
[314589489,1708437042812,-505.10550783,0.00020996,2]
[314589490,1708437042821,-500.0,0.00020996,2]
[314589492,1708437042830,-407.10152581,0.00020996,2]
[314589494,1708437042840,-500.0,0.00020996,2]
[314589496,1708437042849,-500.0,0.00020996,2]
[314589497,1708437042858,-500.0,0.00020996,2]
[314589500,1708437042867,-505.10550783,0.00020996,2]
[314589504,1708437042876,-397.40931692,0.00020996,2]
[314589507,1708437042888,-500.0,0.00020996,2]
[314589510,1708437042900,-500.0,0.00020996,2]
[314589513,1708437042910,-500.0,0.00020996,2]
[314589516,1708437042920,-505.10550783,0.00020996,2]
[314589518,1708437042929,-500.0,0.00020996,2]
[314589521,1708437042939,-500.0,0.00020996,2]
[314589523,1708437042948,-505.10550783,0.00020996,2]
[314589526,1708437042958,-229.65932632,0.00020996,2]
[314589529,1708437042967,-500.0,0.00020996,2]
[314589532,1708437042977,-500.0,0.00020996,2]
[314589535,1708437042986,-500.0,0.00020996,2]
[314589537,1708437042995,-569.31207511,0.00020996,2]
[314589539,1708437043004,-500.0,0.00020996,2]
[314589540,1708437043014,-505.10550783,0.00020996,2]
[314589542,1708437043023,-193.7217106,0.00020996,2]
[314589544,1708437043032,-505.10550783,0.00020996,2]
[314589546,1708437043042,-234.32549645,0.00020996,2]
[314589549,1708437043051,-500.0,0.00020996,2]
[314589552,1708437043060,-395.55962697,0.00020996,2]
[314589554,1708437043069,-505.10550783,0.00020996,2]
[314589556,1708437043079,-500.0,0.00020996,2]
[314589558,1708437043088,-505.10550783,0.00020996,2]
[314589560,1708437043098,-505.10550783,0.00020996,2]
[314589562,1708437043108,-500.0,0.00020996,2]
[314589563,1708437043118,-505.10550783,0.00020996,2]
[314589565,1708437043127,-500.0,0.00020996,2]
[314589567,1708437043137,-500.0,0.00020996,2]
[314589568,1708437043149,-505.10550783,0.00020996,2]
[314589569,1708437043158,-301.00206992,0.00020996,2]
[314589570,1708437043167,-505.10550783,0.00020996,2]
[314589571,1708437043176,-500.0,0.00020996,2]
[314589572,1708437043185,-505.10550783,0.00020996,2]
[314589573,1708437043194,-500.0,0.00020996,2]
[314589574,1708437043205,-505.10550783,0.00020996,2]
[314589575,1708437043215,-505.10550783,0.00020996,2]
[314589576,1708437043226,-500.0,0.00020996,2]
[314589577,1708437043235,-500.0,0.00020996,2]
[314589578,1708437043248,-505.10550783,0.00020996,2]
[314589579,1708437043258,-500.0,0.00020996,2]
[314589580,1708437043270,-505.10550783,0.00020996,2]
[314589581,1708437043279,-505.10550783,0.00020996,2]
[314589582,1708437043289,-505.10550783,0.00020996,2]
[314589583,1708437043298,-505.10550783,0.00020996,2]
[314589585,1708437043308,-500.0,0.00020996,2]
[314589587,1708437043318,-505.10550783,0.00020996,2]
[314589589,1708437043328,-500.0,0.00020996,2]
[314589591,1708437043338,-505.10550783,0.00020996,2]
[314589593,1708437043348,-505.10550783,0.00020996,2]
[314589595,1708437043361,-505.10550783,0.00020996,2]
[314589597,1708437043371,-505.10550783,0.00020996,2]
[314589599,1708437043380,-505.10550783,0.00020996,2]
[314589601,1708437043389,-505.10550783,0.00020996,2]
[314589603,1708437043402,-505.10550783,0.00020996,2]
[314589604,1708437043412,-500.0,0.00020996,2]
[314589606,1708437043420,-505.10550783,0.00020996,2]
[314589608,1708437043429,-505.10550783,0.00020996,2]
[314589610,1708437043439,-500.0,0.00020996,2]
[314589612,1708437043448,-505.10550783,0.00020996,2]
[314589614,1708437043457,-505.10550783,0.00020996,2]
[314589616,1708437043466,-505.10550783,0.00020996,2]
[314589618,1708437043476,-505.10550783,0.00020996,2]
[314589620,1708437043487,-505.10550783,0.00020996,2]
[314589622,1708437043497,-505.10550783,0.00020996,2]
[314589624,1708437043507,-505.10550783,0.00020996,2]
[314589626,1708437043516,-505.10550783,0.00020996,2]
[314589628,1708437043525,-505.10550783,0.00020996,2]
[314589629,1708437043534,-505.10550783,0.00020996,2]
[314589631,1708437043543,-505.10550783,0.00020996,2]
[314589633,1708437043552,-505.10550783,0.00020996,2]
[314589635,1708437043562,-505.10550783,0.00020996,2]
[314589637,1708437043570,-505.10550783,0.00020996,2]
[314589639,1708437043580,-505.10550783,0.00020996,2]
[314589641,1708437043589,-505.10550783,0.00020996,2]
[314589643,1708437043598,-505.10550783,0.00020996,2]
[314589645,1708437043607,-505.10550783,0.00020996,2]
[314589647,1708437043616,-505.10550783,0.00020996,2]
[314589649,1708437043626,-505.10550783,0.00020996,2]
[314589650,1708437043635,-505.10550783,0.00020996,2]
[314589652,1708437043649,-505.10550783,0.00020996,2]
[314589654,1708437043658,-505.10550783,0.00020996,2]
[314589656,1708437043668,-505.10550783,0.00020996,2]
[314589658,1708437043677,-505.10550783,0.00020996,2]
[314589660,1708437043687,-505.10550783,0.00020996,2]
[314589662,1708437043696,-505.10550783,0.00020996,2]
[314589664,1708437043704,-505.10550783,0.00020996,2]
[314589666,1708437043713,-505.10550783,0.00020996,2]
[314589668,1708437043723,-505.10550783,0.00020996,2]
[314589670,1708437043732,-505.10550783,0.00020996,2]
[314589672,1708437043741,-505.10550783,0.00020996,2]
[314589673,1708437043750,-505.10550783,0.00020996,2]
[314589675,1708437043760,-505.10550783,0.00020996,2]
[314589677,1708437043769,-364.03933225,0.00020997,2]
[314589679,1708437043779,-1425.029977,0.00020997,2]
[314589681,1708437043788,-1425.029977,0.00020997,2]
[314589683,1708437043798,-1425.029977,0.00020997,2]
[314589685,1708437043812,-1425.029977,0.00020997,2]
[314589687,1708437043821,-1146.975637,0.00020997,2]
[314589689,1708437043832,-1146.975637,0.00020997,2]
[314589691,1708437043841,-1146.975637,0.00020997,2]
[314589693,1708437043851,-1146.975637,0.00020997,2]
[314589695,1708437043863,-212.9635654,0.00020998,2]
[314589697,1708437043876,-281.08329309,0.00020998,2]
[314589699,1708437043887,-299.69288893,0.00020998,2]
[314589701,1708437043900,-290.91790832,0.00020998,2]
[314589703,1708437043912,-151.0,0.00020998,2]
[314589705,1708437043921,-151.545041,0.00020998,2]
[314589707,1708437043931,-182.365102,0.00020998,2]
[314589709,1708437043940,-182.365102,0.00020998,2]
[314589711,1708437043949,-182.365102,0.00020998,2]
[314589713,1708437043959,-182.365102,0.00020998,2]
[314589714,1708437043969,-252.742984,0.00020999,2]
[314589716,1708437043978,-252.742984,0.00020999,2]
[314589718,1708437043987,-151.0,0.00020999,2]
[314589720,1708437043997,-151.0,0.00020999,2]
[314589722,1708437044006,-151.0,0.00020999,2]
[314589724,1708437044016,-151.0,0.00020999,2]
[314589726,1708437044025,-73268.07100735,0.00021,2]
[314589728,1708437044038,-149571.060535,0.00021,2]
[314589731,1708437044054,-5008.48461045,0.00021,2]
[314589733,1708437044065,-12086.11068794,0.00021,2]
[314589919,1708437045980,-11401.65,0.0002028,3]
[314589922,1708437045991,-5000.0,0.00020309,2]
[314589924,1708437046000,-33592.836363,0.00021,2]
[314589927,1708437046013,-26473.43679626,0.00021,2]
[314589930,1708437046023,-2613.19781391,0.00021,2]
[314589933,1708437046033,-151.0,0.00021,2]
[314589936,1708437046043,-252.742984,0.00021,2]
[314589938,1708437046052,-252.742984,0.00021,2]
[314589940,1708437046062,-151.0,0.00021,2]
[314589942,1708437046073,-151.0,0.00021,2]
[314589944,1708437046082,-182.365102,0.00021,2]
[314589946,1708437046093,-182.365102,0.00021,2]
[314589948,1708437046103,-1425.029977,0.00021,2]
[314589951,1708437046113,-1425.029977,0.00021,2]
[314589954,1708437046123,-1146.975637,0.00021,2]
[314589956,1708437046133,-1146.975637,0.00021,2]
[314589958,1708437046145,-443.12268245,0.00021138,2]
[314589960,1708437046154,-2394.16156675,0.00021428,2]
[314589962,1708437046163,-156.6993804,0.00021439,2]
[314589965,1708437046175,-443.12268245,0.00021455,2]
[314589967,1708437046184,-450.28,0.00021551,3]
[314589969,1708437046193,-50000.0,0.00021555,2]
[314589971,1708437046203,-151.0,0.00021555,2]
[314589973,1708437046213,-252.742984,0.00021555,2]
[314589975,1708437046223,-252.742984,0.00021555,2]
[314589977,1708437046233,-151.0,0.00021555,2]
[314589979,1708437046244,-151.0,0.00021555,2]
[314589981,1708437046254,-182.365102,0.00021555,2]
[314589983,1708437046263,-182.365102,0.00021555,2]
[314589985,1708437046273,-1425.029977,0.00021555,2]
[314589987,1708437046283,-1425.029977,0.00021555,2]
[314589989,1708437046292,-1146.975637,0.00021555,2]
[314589991,1708437046301,-1146.975637,0.00021555,2]
[314589993,1708437046310,-50000.0,0.00021557,2]
[314589995,1708437046319,-151.0,0.00021557,2]
[314589997,1708437046330,-252.742984,0.00021557,2]
[314589999,1708437046339,-252.742984,0.00021557,2]
[314590001,1708437046348,-151.0,0.00021557,2]
[314590003,1708437046358,-151.0,0.00021557,2]
[314590005,1708437046367,-182.365102,0.00021557,2]
[314590007,1708437046377,-182.365102,0.00021557,2]
[314590009,1708437046387,-1425.029977,0.00021557,2]
[314590011,1708437046398,-1425.029977,0.00021557,2]
[314590013,1708437046408,-1146.975637,0.00021557,2]
[314590015,1708437046417,-1146.975637,0.00021557,2]
[314590017,1708437046427,-2176.98383824,0.00021916,2]
[314590019,1708437046436,-500.0,0.00021917,2]
[314590021,1708437046445,-500.0,0.00021917,2]
[314590023,1708437046455,-500.0,0.00021917,2]
[314590025,1708437046464,-500.0,0.00021917,2]
[314590027,1708437046473,-500.0,0.00021917,2]
[314590029,1708437046483,-500.0,0.00021917,2]
[314590031,1708437046492,-500.0,0.00021917,2]
[314590033,1708437046502,-202.36548848,0.00021917,2]
[314590035,1708437046511,-500.0,0.00021917,2]
[314590037,1708437046520,-151.0,0.00021917,2]
[314590039,1708437046530,-500.0,0.00021917,2]
[314590041,1708437046539,-609.67,0.00021917,2]
[314590043,1708437046549,-500.0,0.00021917,2]
[314590045,1708437046560,-500.0,0.00021917,2]
[314590047,1708437046569,-500.0,0.00021917,2]
[314590049,1708437046579,-500.0,0.00021917,2]
[314590051,1708437046589,-500.0,0.00021917,2]
[314590053,1708437046598,-500.0,0.00021917,2]
[314590055,1708437046607,-500.0,0.00021917,2]
[314590057,1708437046617,-1360.86,0.00021917,2]
[314590059,1708437046626,-500.0,0.00021917,2]
[314590061,1708437046636,-213.45503782,0.00021917,2]
[314590063,1708437046648,-400.0,0.00021917,2]
[314590065,1708437046658,-500.0,0.00021917,2]
[314590067,1708437046668,-500.0,0.00021917,2]
[314590069,1708437046678,-1759.75,0.00021917,2]
[314590071,1708437046688,-500.0,0.00021917,2]
[314590073,1708437046697,-500.0,0.00021917,2]
[314590075,1708437046707,-500.0,0.00021917,2]
[314590077,1708437046716,-2886.58,0.00021917,2]
[314590079,1708437046727,-257.48588981,0.00021917,2]
[314590081,1708437046736,-278.50658793,0.00021917,2]
[314590083,1708437046746,-244.41360938,0.00021917,2]
[314590085,1708437046755,-500.0,0.00021917,2]
[314590087,1708437046765,-500.0,0.00021917,2]
[314590089,1708437046774,-191.008126,0.00021917,2]
[314590091,1708437046784,-500.0,0.00021917,2]
[314590093,1708437046794,-701.56,0.00021917,2]
[314590095,1708437046803,-500.0,0.00021917,2]
[314590097,1708437046813,-500.0,0.00021917,2]
[314590100,1708437046823,-500.0,0.00021917,2]
[314590101,1708437046833,-500.0,0.00021917,2]
[314590103,1708437046844,-623.59,0.00021917,2]
[314590106,1708437046853,-500.0,0.00021917,2]
[314590108,1708437046863,-614.70782231,0.00021917,2]
[314590110,1708437046873,-500.0,0.00021917,2]
[314590111,1708437046883,-500.0,0.00021917,2]
[314590113,1708437046895,-604.05,0.00021917,2]
[314590115,1708437046905,-500.0,0.00021917,2]
[314590117,1708437046915,-500.0,0.00021917,2]
[314590119,1708437046926,-500.0,0.00021917,2]
[314590121,1708437046936,-500.0,0.00021917,2]
[314590123,1708437046945,-628.26,0.00021917,2]
[314590125,1708437046955,-467.44471957,0.00021917,2]
[314590127,1708437046965,-500.0,0.00021917,2]
[314590129,1708437046975,-500.0,0.00021917,2]
[314590132,1708437046985,-500.0,0.00021917,2]
[314590133,1708437046995,-500.0,0.00021917,2]
[314590135,1708437047004,-508.63955029,0.00021917,2]
[314590137,1708437047014,-500.0,0.00021917,2]
[314590140,1708437047023,-556.06890107,0.00021917,2]
[314590142,1708437047032,-500.0,0.00021917,2]
[314590144,1708437047042,-500.0,0.00021917,2]
[314590146,1708437047052,-500.0,0.00021917,2]
[314590148,1708437047061,-1223.99,0.00021917,2]
[314590150,1708437047070,-675.87,0.00021917,2]
[314590152,1708437047079,-500.0,0.00021917,2]
[314590154,1708437047089,-500.0,0.00021917,2]
[314590156,1708437047098,-500.0,0.00021917,2]
[314590158,1708437047107,-500.0,0.00021917,2]
[314590160,1708437047116,-500.21795266,0.00021917,2]
[314590162,1708437047125,-500.0,0.00021917,2]
[314590163,1708437047135,-500.0,0.00021917,2]
[314590165,1708437047145,-500.0,0.00021917,2]
[314590167,1708437047155,-500.0,0.00021917,2]
[314590169,1708437047165,-588.91482314,0.00021917,2]
[314590171,1708437047176,-500.0,0.00021917,2]
[314590173,1708437047185,-500.0,0.00021917,2]
[314590175,1708437047195,-500.0,0.00021917,2]
[314590177,1708437047205,-500.0,0.00021917,2]
[314590179,1708437047214,-500.0,0.00021917,2]
[314590182,1708437047229,-500.0,0.00021917,2]
[314590184,1708437047238,-500.0,0.00021917,2]
[314590186,1708437047247,-500.0,0.00021917,2]
[314590188,1708437047256,-500.0,0.00021917,2]
[314590190,1708437047266,-514.69486966,0.00021917,2]
[314590192,1708437047276,-252.742984,0.00021917,2]
[314590194,1708437047285,-252.742984,0.00021917,2]
[314590196,1708437047295,-252.742984,0.00021917,2]
[314590198,1708437047304,-252.742984,0.00021917,2]
[314590200,1708437047313,-500.0,0.00021917,2]
[314590202,1708437047323,-252.742984,0.00021917,2]
[314590204,1708437047332,-252.742984,0.00021917,2]
[314590206,1708437047342,-500.0,0.00021917,2]
[314590207,1708437047351,-500.0,0.00021917,2]
[314590210,1708437047360,-252.742984,0.00021917,2]
[314590212,1708437047370,-252.742984,0.00021917,2]
[314590214,1708437047379,-252.742984,0.00021917,2]
[314590216,1708437047388,-252.742984,0.00021917,2]
[314590218,1708437047400,-500.0,0.00021917,2]
[314590220,1708437047412,-252.742984,0.00021917,2]
[314590222,1708437047422,-252.742989,0.00021917,2]
[314590224,1708437047431,-1635.51,0.00021917,2]
[314590226,1708437047441,-500.0,0.00021917,2]
[314590228,1708437047450,-500.0,0.00021917,2]
[314590230,1708437047459,-500.0,0.00021917,2]
[314590232,1708437047468,-500.0,0.00021917,2]
[314590234,1708437047477,-558.82,0.00021917,2]
[314590236,1708437047487,-666.65,0.00021917,2]
[314590238,1708437047496,-500.0,0.00021917,2]
[314590240,1708437047505,-500.0,0.00021917,2]
[314590242,1708437047515,-500.0,0.00021917,2]
[314590244,1708437047524,-500.0,0.00021917,2]
[314590249,1708437047694,-659.36,0.00021917,2]
[314590251,1708437047704,-500.0,0.00021917,2]
[314590253,1708437047714,-500.0,0.00021917,2]
[314590255,1708437047723,-500.0,0.00021917,2]
[314590257,1708437047732,-500.0,0.00021917,2]
[314590259,1708437047741,-500.0,0.00021917,2]
[314590261,1708437047751,-168.92380778,0.00021917,2]
[314590263,1708437047760,-5993.84,0.00021917,2]
[314590265,1708437047769,-500.0,0.00021917,2]
[314590267,1708437047778,-1581.56,0.00021917,2]
[314590269,1708437047788,-500.0,0.00021917,2]
[314590271,1708437047798,-500.0,0.00021917,2]
[314590273,1708437047807,-500.0,0.00021917,2]
[314590274,1708437047816,-500.0,0.00021917,2]
[314590277,1708437047826,-2771.63,0.00021917,2]
[314590278,1708437047835,-500.0,0.00021917,2]
[314590281,1708437047845,-500.0,0.00021917,2]
[314590282,1708437047854,-500.0,0.00021917,2]
[314590285,1708437047864,-500.0,0.00021917,2]
[314590286,1708437047874,-620.62,0.00021917,2]
[314590288,1708437047885,-500.0,0.00021917,2]
[314590290,1708437047896,-500.0,0.00021917,2]
[314590292,1708437047907,-1016.77,0.00021917,2]
[314590294,1708437047916,-500.0,0.00021917,2]
[314590296,1708437047925,-682.53,0.00021917,2]
[314590298,1708437047935,-500.0,0.00021917,2]
[314590300,1708437047944,-500.0,0.00021917,2]
[314590302,1708437047954,-500.0,0.00021917,2]
[314590304,1708437047963,-500.0,0.00021917,2]
[314590306,1708437047973,-500.0,0.00021917,2]
[314590308,1708437047983,-700.68,0.00021917,2]
[314590310,1708437047992,-500.0,0.00021917,2]
[314590312,1708437048001,-772.02,0.00021917,2]
[314590314,1708437048010,-270.72050512,0.00021917,2]
[314590316,1708437048019,-583.31,0.00021917,2]
[314590318,1708437048029,-500.0,0.00021917,2]
[314590320,1708437048038,-500.0,0.00021917,2]
[314590322,1708437048047,-569.29,0.00021917,2]
[314590324,1708437048057,-500.0,0.00021917,2]
[314590325,1708437048066,-500.0,0.00021917,2]
[314590328,1708437048076,-2782.36,0.00021917,2]
[314590329,1708437048085,-3693.28,0.00021917,2]
[314590332,1708437048094,-500.0,0.00021917,2]
[314590333,1708437048104,-500.0,0.00021917,2]
[314590335,1708437048113,-500.0,0.00021917,2]
[314590337,1708437048123,-500.0,0.00021917,2]
[314590340,1708437048133,-452.49903901,0.00021917,2]
[314590342,1708437048143,-500.0,0.00021917,2]
[314590344,1708437048153,-557.29,0.00021917,2]
[314590345,1708437048163,-500.0,0.00021917,2]
[314590347,1708437048173,-500.0,0.00021917,2]
[314590349,1708437048182,-500.0,0.00021917,2]
[314590351,1708437048192,-500.0,0.00021917,2]
[314590354,1708437048203,-500.0,0.00021917,2]
[314590355,1708437048213,-173.99098912,0.00021917,2]
[314590358,1708437048227,-500.0,0.00021917,2]
[314590360,1708437048238,-603.24,0.00021917,2]
[314590362,1708437048248,-500.0,0.00021917,2]
[314590363,1708437048259,-500.0,0.00021917,2]
[314590366,1708437048271,-500.0,0.00021917,2]
[314590367,1708437048281,-500.0,0.00021917,2]
[314590369,1708437048291,-500.0,0.00021917,2]
[314590371,1708437048302,-500.0,0.00021917,2]
[314590373,1708437048313,-500.0,0.00021917,2]
[314590375,1708437048323,-500.0,0.00021917,2]
[314590377,1708437048332,-500.0,0.00021917,2]
[314590379,1708437048342,-500.0,0.00021917,2]
[314590381,1708437048351,-748.98,0.00021917,2]
[314590383,1708437048361,-500.0,0.00021917,2]
[314590385,1708437048371,-265.14873351,0.00021917,2]
[314590387,1708437048381,-500.0,0.00021917,2]
[314590389,1708437048390,-681.85,0.00021917,2]
[314590391,1708437048408,-151.0,0.00021917,2]
[314590393,1708437048418,-151.0,0.00021917,2]
[314590395,1708437048427,-151.0,0.00021917,2]
[314590397,1708437048437,-151.0,0.00021917,2]
[314590399,1708437048446,-269.567994,0.00021917,2]
[314590401,1708437048456,-500.0,0.00021917,2]
[314590403,1708437048465,-500.0,0.00021917,2]
[314590405,1708437048475,-651.94,0.00021917,2]
[314590408,1708437048486,-500.0,0.00021917,2]
[314590409,1708437048495,-500.0,0.00021917,2]
[314590411,1708437048505,-500.0,0.00021917,2]
[314590413,1708437048515,-760.99,0.00021917,2]
[314590416,1708437048524,-512.55610441,0.00021917,2]
[314590417,1708437048533,-206.96107827,0.00021917,2]
[314590419,1708437048543,-1319.6,0.00021917,2]
[314590422,1708437048552,-500.0,0.00021917,2]
[314590423,1708437048562,-1428.81,0.00021917,2]
[314590425,1708437048571,-877.82,0.00021917,2]
[314590427,1708437048581,-500.0,0.00021917,2]
[314590429,1708437048590,-500.0,0.00021917,2]
[314590432,1708437048599,-500.0,0.00021917,2]
[314590433,1708437048609,-1796.62,0.00021917,2]
[314590435,1708437048618,-500.0,0.00021917,2]
[314590438,1708437048628,-500.0,0.00021917,2]
[314590439,1708437048637,-601.58,0.00021917,2]
[314590441,1708437048650,-500.0,0.00021917,2]
[314590443,1708437048659,-511.27433003,0.00021917,2]
[314590445,1708437048668,-155.02551061,0.00021917,2]
[314590447,1708437048677,-512.67746296,0.00021917,2]
[314590449,1708437048687,-500.0,0.00021917,2]
[314590452,1708437048696,-395.53719092,0.00021917,2]
[314590454,1708437048706,-500.0,0.00021917,2]
[314590455,1708437048716,-500.0,0.00021917,2]
[314590457,1708437048725,-656.77,0.00021917,2]
[314590460,1708437048736,-1548.96,0.00021917,2]
[314590462,1708437048745,-500.0,0.00021917,2]
[314590463,1708437048754,-500.0,0.00021917,2]
[314590465,1708437048763,-500.0,0.00021917,2]
[314590467,1708437048773,-707.57,0.00021917,2]
[314590469,1708437048782,-1524.64,0.00021917,2]
[314590471,1708437048792,-500.0,0.00021917,2]
[314590474,1708437048801,-398.33769882,0.00021917,2]
[314590475,1708437048810,-5401.26,0.00021917,2]
[314590477,1708437048820,-500.0,0.00021917,2]
[314590479,1708437048829,-500.0,0.00021917,2]
[314590482,1708437048839,-500.0,0.00021917,2]
[314590483,1708437048848,-500.0,0.00021917,2]
[314590486,1708437048857,-500.0,0.00021917,2]
[314590488,1708437048867,-500.0,0.00021917,2]
[314590489,1708437048877,-500.0,0.00021917,2]
[314590492,1708437048888,-500.0,0.00021917,2]
[314590494,1708437048900,-500.0,0.00021917,2]
[314590496,1708437048910,-639.29,0.00021917,2]
[314590498,1708437048919,-500.0,0.00021917,2]
[314590500,1708437048928,-500.0,0.00021917,2]
[314590502,1708437048938,-200.0,0.00021917,2]
[314590504,1708437048947,-500.0,0.00021917,2]
[314590506,1708437048957,-500.0,0.00021917,2]
[314590508,1708437048966,-500.0,0.00021917,2]
[314590510,1708437048975,-4157.93,0.00021917,2]
[314590512,1708437048984,-509.39,0.00021917,2]
[314590514,1708437048993,-500.0,0.00021917,2]
[314590516,1708437049002,-500.0,0.00021917,2]
[314590518,1708437049011,-723.52,0.00021917,2]
[314590520,1708437049020,-500.0,0.00021917,2]
[314590522,1708437049030,-1409.5,0.00021917,2]
[314590524,1708437049039,-500.0,0.00021917,2]
[314590526,1708437049048,-968.22,0.00021917,2]
[314590528,1708437049058,-500.0,0.00021917,2]
[314590530,1708437049067,-500.0,0.00021917,2]
[314590532,1708437049076,-500.0,0.00021917,2]
[314590534,1708437049086,-500.0,0.00021917,2]
[314590536,1708437049095,-500.0,0.00021917,2]
[314590538,1708437049104,-500.0,0.00021917,2]
[314590540,1708437049113,-500.0,0.00021917,2]
[314590542,1708437049122,-500.0,0.00021917,2]
[314590544,1708437049134,-500.0,0.00021917,2]
[314590546,1708437049143,-2401.42,0.00021917,2]
[314590548,1708437049154,-404.64355252,0.00021917,2]
[314590550,1708437049163,-838.52,0.00021917,2]
[314590552,1708437049173,-500.0,0.00021917,2]
[314590554,1708437049182,-500.0,0.00021917,2]
[314590556,1708437049191,-500.0,0.00021917,2]
[314590558,1708437049200,-500.0,0.00021917,2]
[314590560,1708437049209,-500.0,0.00021917,2]
[314590562,1708437049219,-7530.79,0.00021917,2]
[314590564,1708437049229,-5037.2,0.00021917,2]
[314590566,1708437049238,-500.0,0.00021917,2]
[314590568,1708437049249,-1245.46,0.00021917,2]
[314590570,1708437049258,-604.35,0.00021917,2]
[314590572,1708437049268,-500.0,0.00021917,2]
[314590573,1708437049277,-594.48,0.00021917,2]
[314590575,1708437049287,-3045.24,0.00021917,2]
[314590578,1708437049306,-606.15,0.00021917,2]
[314590580,1708437049316,-500.0,0.00021917,2]
[314590581,1708437049325,-500.0,0.00021917,2]
[314590583,1708437049334,-500.0,0.00021917,2]
[314590585,1708437049344,-4867.05,0.00021917,2]
[314590587,1708437049353,-500.0,0.00021917,2]
[314590589,1708437049363,-500.0,0.00021917,2]
[314590591,1708437049371,-500.0,0.00021917,2]
[314590593,1708437049381,-500.0,0.00021917,2]
[314590595,1708437049390,-521.35847684,0.00021917,2]
[314590598,1708437049402,-500.0,0.00021917,2]
[314590599,1708437049411,-500.0,0.00021917,2]
[314590601,1708437049421,-506.50249164,0.00021917,2]
[314590603,1708437049430,-500.0,0.00021917,2]
[314590605,1708437049440,-534.98,0.00021917,2]
[314590607,1708437049449,-500.0,0.00021917,2]
[314590609,1708437049458,-502.63,0.00021917,2]
[314590611,1708437049467,-649.41414066,0.00021917,2]
[314590613,1708437049476,-500.0,0.00021917,2]
[314590615,1708437049484,-500.0,0.00021917,2]
[314590617,1708437049494,-509.03,0.00021917,2]
[314590619,1708437049503,-26730.41069022,0.00021917,2]
[314590639,1708437049680,-11087.15930978,0.00021917,2]
[314590641,1708437049689,-500.0,0.00021917,2]
[314590643,1708437049699,-500.0,0.00021917,2]
[314590645,1708437049708,-500.0,0.00021917,2]
[314590647,1708437049717,-500.0,0.00021917,2]
[314590649,1708437049726,-500.0,0.00021917,2]
[314590651,1708437049735,-500.0,0.00021917,2]
[314590653,1708437049745,-500.0,0.00021917,2]